[Event "55th Biel Festival ATO 2022"]
[Site "Biel"]
[Date "2022.07.19"]
[Round "6.9"]
[White "Klein Ethan"]
[Black "Kalbermatter, Philipp"]
[Result "1/2-1/2"]
[ECO "D07"]
[WhiteElo "1952"]
[BlackElo "1871"]
[Annotator "TA"]
[PlyCount "69"]
[EventDate "2022.07.13"]
[EventType "swiss"]
[EventCountry "SUI"]
[SourceTitle "playchess.com"]
[Source "ChessBase"]
[SourceQuality "1"]
[TimeControl "40/5400+30:1800+30"]

{[%evp 9,69,17,21,-9,20,17,18,10,10,12,25,21,52,56,93,75,99,73,99,20,47,38,56,25,63,17,13,14,30,27,34,10,64,13,1,0,0,0,44,12,27,39,50,38,111,117,123,40,74,22,43,76,61,68,67,0,0,0,0,0,16,0]} 1. d4 {[%emt 0:01:25][%cal Bd2d4,Bd4d5][%mdl 32]} d5 {[%emt 0:00:20][%cal Bd7d5,Bd5c4][%mdl 32]} 2. c4 {[%emt 0:00:04]} Nc6 {[%emt 0:00:40]} 3. Nc3 {[%emt 0:00:49]} Nf6 {[%emt 0:01:20]} 4. Nf3 {[%emt 0:00:34]} dxc4 {[%emt 0:02:58]} 5. d5 {[%emt 0:02:24]} Na5 {[%emt 0:04:09]} 6. e4 {[%emt 0:01:42]} e6 {[%emt 0:03:51]} 7. Qa4+ {[%emt 0:03:23]} c6 {[%emt 0:00:37]} 8. dxc6 {[%emt 0:01:52]} Nxc6 {[%emt 0:00:35]} 9. Bxc4 {[%emt 0:01:00]} Bd7 {[%emt 0:02:38]} 10. Qd1 {[%emt 0:05:24]} Na5 {[%emt 0:06:41]} 11. Bd3 {[%emt 0:01:35]} Bc6 {[%emt 0:03:59]} 12. O-O {[%emt 0:13:22]} Be7 {[%emt 0:02:30]} 13. Qe2 {[%emt 0:06:49]} a6 {[%emt 0:05:39]} 14. Ne5 {[%emt 0:03:54]} (14. Rd1 $16) 14... Qc7 {[%emt 0:04:26]} 15. f4 {[%emt 0:08:40]} Rd8 {[%emt 0:13:22]} 16. Rb1 {[%emt 0:10:27] b4 is the strong threat.} Bd7 {[%emt 0:01:39]} 17. Kh1 {[%emt 0:03:38] Active counter play!} (17. Be3 $14 {might be stronger.}) 17... Nc6 $11 {[%emt 0:01:38][%cal Ba5c6,Bc6b4,Bb4d3][%mdl 32]} 18. Nf3 {[%emt 0:10:33]} Nb4 {[%emt 0:04:10]} 19. Bc4 {[%emt 0:00:22][%cal Of4f5]} b5 {[%emt 0:02:37]} 20. Bb3 {[%emt 0:00:29][%cal Of4f5]} Bc8 {[%emt 0:01:33]} ({Better is} 20... Bc6 $1 $11) 21. a3 {[%emt 0:03:24]} ({White must play} 21. Bd2 $1 $14) 21... Nd3 {[%emt 0:01:59]} 22. e5 {[%emt 0:00:43]} Ng4 {[%emt 0:09:19]} 23. h3 {[%emt 0:02:04]} Nh6 {[%emt 0:01:16]} (23... h5 $5 {[%cal Rc8b7]}) 24. Bc2 {[%emt 0:04:28]} Nf5 {[%emt 0:01:44] aiming for ...Ng3+.} 25. Kh2 $36 {[%emt 0:00:17][%mdl 2048] Inhibits Ng3. White has some pressure.} Nxc1 {[%emt 0:01:06]} 26. Rbxc1 {[%emt 0:00:15] Strongly threatening Bxf5.} Nd4 {[%emt 0:00:23]} ({Black should try} 26... O-O $14) 27. Nxd4 $16 {[%emt 0:00:32]} Rxd4 {[%emt 0:00:08] [#]} 28. Be4 {[%emt 0:05:06]} (28. Bxh7 $1 $16 {[%cal Oc3b5][%mdl 512] Threatens to win with Nxb5!} Qd7 (28... Qd8 29. Bc2) 29. Be4) 28... Qb8 {[%emt 0:01:02]} 29. Qe3 {[%emt 0:03:02]} (29. Bc6+ $16 Kf8 30. Ne4) 29... Rd8 {[%emt 0:01:12]} 30. Bc6+ {[%emt 0:01:46]} Bd7 {[%emt 0:00:11]} 31. Ne4 $1 {[%emt 0:01:20]} O-O {[%emt 0:01:55]} 32. Bxd7 {[%emt 0:00:41]} (32. b4 $14) 32... Rxd7 $11 {[%emt 0:00:04] The position is equal.} 33. Rc6 {[%emt 0:00:18]} a5 {[%emt 0:05:03]} 34. Rfc1 {[%emt 0:01:16]} a4 {[%emt 0:02:59]} 35. Qc3 {[%emt 0:01:53] Weighted Error Value: White=0.23 (precise) /Black=0.19 (very precise)} 1/2-1/2

[Event "55th Biel Festival ATO 2022"]
[Site "Biel"]
[Date "2022.07.19"]
[Round "6.10"]
[White "Schneuwly Achim"]
[Black "Titov, Dmitrii"]
[Result "1-0"]
[ECO "D05"]
[WhiteElo "2002"]
[BlackElo "1845"]
[Annotator "TA"]
[PlyCount "81"]
[EventDate "2022.07.13"]
[EventType "swiss"]
[EventCountry "SUI"]
[SourceTitle "playchess.com"]
[Source "ChessBase"]
[SourceQuality "1"]
[TimeControl "40/5400+30:1800+30"]

{[%evp 10,81,1,9,3,6,14,1,24,-21,0,0,20,21,12,4,26,18,106,110,110,105,100,70,115,89,161,98,187,186,233,166,162,168,172,169,172,173,193,182,224,202,251,187,201,184,175,149,128,104,108,107,110,100,163,102,148,88,214,104,241,250,259,171,346,350,383,30,685,668,966,916,6663,6322]} 1. Nf3 {[%emt 0:00:09]} Nf6 {[%emt 0:00:11]} 2. e3 {[%emt 0:00:24]} c5 {[%emt 0:01:40]} 3. d4 {[%emt 0:00:50]} e6 {[%emt 0:00:34]} 4. Bd3 {[%emt 0:00:22]} d5 {[%emt 0:03:30]} 5. c3 {[%emt 0:01:39]} c4 {[%emt 0:02:52]} 6. Bc2 {[%emt 0:00:07]} b5 {[%emt 0:02:28] D05: Colle System with ...e6.} 7. Nbd2 {[%emt 0:00:43]} Bb7 {[%emt 0:02:44]} 8. O-O {[%emt 0:02:54]} Nbd7 {[%emt 0:03:02] The position is equal.} 9. Ne5 {[%emt 0:00:36] [#]} Nxe5 $146 {[%emt 0:07:31]} ({Predecessor:} 9... g6 10. f3 a5 11. Nxd7 Qxd7 12. e4 dxe4 13. fxe4 Bg7 14. Qe1 O-O 15. Nf3 Nh5 {1-0 (48) Keusch,H (1948)-Herrmann,E (1770) Berlin 2009}) 10. dxe5 {[%emt 0:00:06]} Nd7 {[%emt 0:00:30]} 11. f4 $1 {[%emt 0:00:46]} Qb6 {[%emt 0:11:58]} 12. Nf3 {[%emt 0:00:40]} Bc5 {[%emt 0:02:12]} 13. Nd4 {[%emt 0:00:37]} Bxd4 {[%emt 0:00:15]} (13... a5 $11) 14. exd4 $16 {[%emt 0:00:16]} g6 {[%emt 0:01:11] Prevents f5.} 15. Qe2 {[%emt 0:18:11]} a5 {[%emt 0:15:25]} 16. Be3 {[%emt 0:00:30][%cal Bc1e3,Be3f2,Bf2h4][%mdl 32]} Ba6 {[%emt 0:00:30]} 17. Bf2 {[%emt 0:00:30]} Qc7 {[%emt 0:04:26]} (17... O-O $16) 18. a3 {[%emt 0:01:40]} (18. Bh4 $18) 18... Nb6 {[%emt 0:02:29]} (18... O-O-O $16) 19. Bh4 $18 {[%emt 0:03:24][%cal Of4f5] [#] Hoping for f5!} Kd7 {[%emt 0:01:30]} (19... h5 $142 20. Bf6 Rh7) 20. g4 {[%emt 0:01:52]} Kc6 {[%emt 0:02:10]} 21. f5 {[%emt 0:00:30]} gxf5 {[%emt 0:03:41]} 22. gxf5 {[%emt 0:00:09]} Bc8 {[%emt 0:01:15]} 23. Kh1 {[%emt 0:02:04]} Na4 {[%emt 0:07:37]} 24. Qh5 {[%emt 0:02:13]} Nb6 {[%emt 0:01:54]} 25. Rab1 {[%emt 0:00:30]} b4 {[%emt 0:01:32]} 26. Bf6 {[%emt 0:01:48]} (26. cxb4 axb4 27. axb4 h6 $18) 26... Re8 {[%emt 0:02:23]} 27. fxe6 {[%emt 0:01:10]} (27. Qxh7 $6 b3 $16) 27... Bxe6 {[%emt 0:00:31]} 28. Rg1 {[%emt 0:03:42]} (28. cxb4 axb4 29. axb4 Nd7 $16) 28... Rg8 {[%emt 0:03:23]} 29. Bg7 {[%emt 0:01:02]} (29. cxb4 Rxg1+ 30. Rxg1 axb4 $14) 29... bxa3 {[%emt 0:04:07]} 30. bxa3 {[%emt 0:00:14]} Qe7 {[%emt 0:00:38]} 31. Ra1 {[%emt 0:07:22] White is more active.} ({Don't play} 31. Qxh7 $6 Qxa3 32. Qh4 (32. Rg3 Nd7 $11) 32... a4 $11) 31... Rab8 {[%emt 0:03:02]} (31... Nd7 $16 32. Ra2 (32. Bxh7 Rgb8 $16) 32... Kc7) 32. Qxh7 {[%emt 0:05:54]} (32. Bxh7 $18 Rgc8 33. Bf6) 32... Kc7 {[%emt 0:02:26]} (32... Nd7 $142) 33. Qh6 {[%emt 0:08:29]} (33. a4 $142) 33... Qd7 {[%emt 0:00:57] [#]} (33... Nd7 $16) 34. Bh7 {[%emt 0:01:08]} (34. a4 $1 $18) 34... Na4 {[%emt 0:03:06]} (34... Rgc8 $16 {was worth a try.} 35. Rg3 Na4) 35. Bxg8 {[%emt 0:00:42]} Rxg8 {[%emt 0:00:13]} 36. Qf4 {[%emt 0:03:09]} Nxc3 $2 {[%emt 0:01:32]} (36... Rb8 37. Rg3 Rb3) 37. Qd2 {[%emt 0:01:19]} Bf5 {[%emt 0:02:48] aiming for ...Be4+.} 38. Rg3 $2 {[%emt 0:02:22]} ({White must play} 38. h3 $18 Bd3 39. e6 Qxe6 40. Be5+ Kc6 41. Rxg8 Qxh3+ 42. Qh2 Be4+ 43. Kg1 Qe3+ 44. Qf2 Ne2+ 45. Kf1 Qh3+ 46. Kxe2 Qd3+ 47. Ke1 Qc3+ 48. Ke2 Qd3+ 49. Ke1 Qc3+ 50. Qd2 Qxa1+ 51. Kf2) 38... Be4+ $2 {[%emt 0:00:11][%mdl 8192]} (38... Ne4 $11 39. Qxa5+ Kc6 40. Qa6+ Kc7 41. Qa7+ Kc6 42. Qa6+ Kc7) 39. Kg1 {[%emt 0:00:24] White is clearly winning.} Na4 {[%emt 0:00:48]} 40. e6 {[%emt 0:04:51]} c3 {[%emt 0:00:47]} 41. Qf4+ {[%emt 0:30:28] Weighted Error Value: White=0.39/Black=0.51} 1-0

[Event "55th Biel Festival ATO 2022"]
[Site "Biel"]
[Date "2022.07.20"]
[Round "7.1"]
[White "Sala, Matteo"]
[Black "Harisurya Bharadwaj Gundepudi"]
[Result "0-1"]
[ECO "B11"]
[WhiteElo "1708"]
[BlackElo "1924"]
[Annotator "TA"]
[PlyCount "76"]
[EventDate "2022.07.13"]
[EventType "swiss"]
[EventCountry "SUI"]
[SourceTitle "playchess.com"]
[Source "ChessBase"]
[SourceQuality "1"]
[TimeControl "40/5400+30:1800+30"]

{[%evp 10,76,28,31,23,0,4,2,8,-23,9,20,20,-30,20,-51,13,0,25,15,13,11,12,13,40,27,35,27,50,0,0,0,6,7,7,0,0,-12,-16,-13,-13,-58,-55,-42,-20,-22,-22,-29,-23,-30,-23,-102,-86,-107,-72,-210,-132,-204,-199,-271,-280,-263,-256,-246,-245,-29991,-29992,-29992,-29993]} 1. e4 {[%emt 0:00:03]} c6 {[%emt 0:01:21]} 2. Nf3 {[%emt 0:00:09]} d5 {[%emt 0:00:17]} 3. Nc3 {[%emt 0:00:07]} dxe4 {[%emt 0:00:58]} 4. Nxe4 {[%emt 0:00:07]} Nf6 {[%emt 0:00:04]} 5. Qe2 {[%emt 0:00:06]} Nxe4 {[%emt 0:00:47]} 6. Qxe4 {[%emt 0:00:07]} Qd5 {[%emt 0:00:15] B11: Caro-Kann: Two Knights Variation.} 7. Qxd5 {[%emt 0:07:48]} cxd5 {[%emt 0:00:09]} 8. d4 {[%emt 0:02:01]} Nc6 {[%emt 0:00:18] [#] The position is equal.} 9. Bd3 $146 {[%emt 0:08:05]} ({Predecessor:} 9. Bb5 e6 10. O-O Bd6 11. c3 f6 12. Re1 Kf7 13. g3 h6 14. a4 Bd7 15. Bd3 {0-1 (61) Tregubov,P (2560)-Tari,A (2634) Chess.com INT 2020}) 9... a6 {[%emt 0:02:19]} 10. c3 {[%emt 0:01:00]} Bg4 {[%emt 0:00:15]} 11. Bf4 {[%emt 0:03:10]} (11. Ne5 $142 Nxe5 12. dxe5) 11... e6 {[%emt 0:01:21]} ({Better is} 11... Bxf3 12. gxf3 e6) 12. O-O {[%emt 0:02:16]} (12. Ne5 $11 Nxe5 13. Bxe5) 12... Be7 {[%emt 0:02:39]} (12... Bxf3 $15 13. gxf3 Kd7) 13. Nd2 {[%emt 0:05:21]} O-O {[%emt 0:00:53]} 14. a4 {[%emt 0:04:17]} Rfe8 {[%emt 0:05:05]} 15. Rfe1 {[%emt 0:16:34]} Bf8 {[%emt 0:05:26]} 16. b4 {[%emt 0:07:46]} Ne7 {[%emt 0:06:03]} 17. a5 {[%emt 0:04:55]} Rec8 {[%emt 0:00:08]} 18. Rac1 {[%emt 0:01:27]} Bf5 {[%emt 0:00:08]} 19. Bxf5 {[%emt 0:00:48]} (19. Be2 $14) 19... Nxf5 $11 {[%emt 0:00:06]} 20. Nb3 {[%emt 0:00:26]} Bd6 {[%emt 0:02:37]} 21. Be5 {[%emt 0:04:05]} Bxe5 {[%emt 0:02:43]} 22. dxe5 {[%emt 0:00:47]} Rc6 {[%emt 0:01:33]} 23. Nc5 {[%emt 0:01:25]} b6 {[%emt 0:03:26]} 24. axb6 {[%emt 0:02:41]} Rxb6 {[%emt 0:00:04]} 25. g4 {[%emt 0:01:47]} Nh4 {[%emt 0:01:35] And now ...Nf3+ would win.} 26. Re2 {[%emt 0:05:16]} d4 {[%emt 0:01:53]} 27. Nd3 {[%emt 0:00:33]} ({Of course not} 27. cxd4 Rxb4 28. Rd1 a5 $17) 27... dxc3 {[%emt 0:01:59] Threatens to win with ...Rc8.} 28. Rxc3 {[%emt 0:00:03]} h6 {[%emt 0:00:11]} 29. Ra2 {[%emt 0:02:39]} Rd8 {[%emt 0:00:17][%cal Ob6b4] White must now prevent ...Rxb4!} 30. Ra4 {[%emt 0:02:07]} (30. h3 $11 {remains equal.}) 30... a5 $1 $17 {[%emt 0:01:58]} 31. h3 {[%emt 0:12:18]} (31. bxa5 $2 Rb1+ 32. Rc1 Rxc1+ 33. Nxc1 Rd1#) 31... axb4 {[%emt 0:00:08]} 32. Nxb4 {[%emt 0:03:22] [#] This move loses the game for White.} (32. Rxb4 $17 {only move.} Nf3+ 33. Kg2 Rxb4 34. Nxb4 Nxe5 35. Re3) 32... Rd1+ $1 $19 {[%emt 0:04:19]} 33. Kh2 {[%emt 0:00:04] [#]} g5 $1 {[%emt 0:00:20]} 34. Rc8+ {[%emt 0:02:46]} (34. Rd3 $142 Rf1 35. Rd8+ Kg7 36. Raa8) 34... Kg7 {[%emt 0:00:05]} 35. Raa8 {[%emt 0:00:57]} Nf3+ {[%emt 0:00:19]} (35... Rxb4 $2 {is a self mate.} 36. Rg8+ Kh7 37. Rh8+ Kg7 38. Rag8#) 36. Kg2 {[%emt 0:00:23] White wants to mate with Rg8+.} Nxe5 {[%emt 0:00:05]} (36... Rxb4 $2 {leads to mate.} 37. Rg8+ Kh7 38. Rh8+ Kg7 39. Rag8#) 37. Nc2 {[%emt 0:00:28]} (37. Rg8+ $19 Kf6 38. Rgb8) 37... Rbb1 {[%emt 0:00:13]} 38. Rg8+ {[%emt 0:00:40]} Kf6 {[%emt 0:00:07] Weighted Error Value: White=0.46/Black=0.11 (very precise)} 0-1

[Event "55th Biel Festival ATO 2022"]
[Site "Biel"]
[Date "2022.07.20"]
[Round "7.10"]
[White "Aegerter, Fabrice"]
[Black "Klein Ethan"]
[Result "0-1"]
[ECO "B13"]
[WhiteElo "1797"]
[BlackElo "1952"]
[Annotator "TA"]
[PlyCount "64"]
[EventDate "2022.07.13"]
[EventType "swiss"]
[EventCountry "SUI"]
[SourceTitle "playchess.com"]
[Source "ChessBase"]
[SourceQuality "1"]
[TimeControl "40/5400+30:1800+30"]

{[%evp 14,64,39,33,42,-35,-41,-86,0,-41,-24,-41,-26,-108,0,0,0,0,0,0,32,42,45,0,0,0,0,0,0,0,0,0,28,0,0,-148,-122,-295,-285,-304,-299,-761,-693,-811,-638,-1506,-1404,-12837,-12837,-12836,-12838,-29992,-29993]} 1. d4 {[%emt 0:00:06]} d5 {[%emt 0:00:36]} 2. Bf4 {[%emt 0:00:16]} c5 {[%emt 0:00:43]} 3. e3 {[%emt 0:00:33]} Nc6 {[%emt 0:00:15]} 4. c3 {[%emt 0:01:25]} Nf6 {[%emt 0:01:23]} 5. Nd2 {[%emt 0:02:26]} cxd4 {[%emt 0:00:29]} 6. exd4 {[%emt 0:00:20]} g6 {[%emt 0:00:37]} 7. Ngf3 {[%emt 0:03:23] 7.Ngf3 is better than 7.Bd3.} Bg7 {[%emt 0:03:16]} 8. Bd3 {[%emt 0:01:22]} O-O {[%emt 0:00:13] B13: Caro-Kann: Exchange Variation and Panov-Botvinnik Attack.} 9. Qe2 {[%emt 0:02:33]} (9. O-O $14) 9... Nh5 $15 {[%emt 0:05:18]} 10. Bg3 {[%emt 0:12:23] [#]} Bh6 $146 {[%emt 0:02:59]} (10... Bg4 $17 {[%cal Oe7e5] Hoping for ...e5!} 11. h3 Nxg3 12. fxg3 Bd7) ({Predecessor:} 10... f6 11. O-O-O Bg4 12. h3 Nxg3 13. fxg3 Bd7 14. Nb3 Rc8 15. Nc5 e5 16. dxe5 fxe5 17. Nxd7 Qxd7 {0-1 (56) Haase,S (1731)-Boecking,U (1738) Mecklenburg VP 2016}) 11. Ne5 {[%emt 0:05:48]} Nf4 {[%emt 0:04:23]} 12. Bxf4 {[%emt 0:01:51]} Bxf4 {[%emt 0:00:06]} 13. g3 {[%emt 0:02:29]} (13. Nxc6 $11 {keeps the balance.} bxc6 14. g3) 13... Bh6 {[%emt 0:08:07]} ({Black should try} 13... Bxe5 $17 14. dxe5 d4) 14. h4 {[%emt 0:06:17]} Nxe5 {[%emt 0:19:07]} 15. dxe5 {[%emt 0:14:34]} d4 {[%emt 0:02:23]} 16. c4 {[%emt 0:14:26]} Qa5 {[%emt 0:16:09][%cal Oc8g4]} 17. f4 {[%emt 0:00:30]} f6 {[%emt 0:00:30]} 18. e6 {[%emt 0:00:30]} f5 $36 {[%emt 0:03:08][%mdl 2048] Black has some pressure.} 19. h5 {[%emt 0:12:31] [#] Strongly threatening hxg6.} Rf6 {[%emt 0:12:04]} 20. hxg6 {[%emt 0:10:20]} Rxe6 {[%emt 0:00:47]} 21. Rxh6 {[%emt 0:00:36]} Rxe2+ {[%emt 0:02:50]} 22. Kxe2 {[%emt 0:00:12]} hxg6 {[%emt 0:00:14]} 23. Rxg6+ {[%emt 0:02:23]} (23. Rah1 $5 {[%cal Rd2f3]} Qxa2 24. Rxg6+ Kf7 25. Rg5 $11) 23... Kf7 {[%emt 0:00:10]} 24. Rg5 {[%emt 0:00:14] [#]} (24. Rh6 $11) 24... Be6 $1 $17 {[%emt 0:07:30]} 25. Rh1 {[%emt 0:02:24] Inhibits Rh8. Loses the game.} (25. Nf3 $17 {might work better.} Rh8 26. a3) 25... Rg8 $19 {[%emt 0:00:37] The board is on fire.} ({But not} 25... Qxa2 26. Rh7+ Kf6 27. g4 $18) 26. Rh7+ {[%emt 0:01:22]} Kf8 {[%emt 0:01:46] ...Rxg5 is the strong threat.} 27. Nf3 {[%emt 0:01:03]} (27. Rxg8+ Bxg8 28. Rh5) 27... Qxa2 {[%emt 0:01:41]} 28. Nxd4 {[%emt 0:00:38]} Bxc4 {[%emt 0:01:38]} 29. Rxf5+ {[%emt 0:00:50]} Ke8 {[%emt 0:00:03]} 30. Re5 {[%emt 0:00:52]} Bxd3+ {[%emt 0:01:52]} 31. Kxd3 {[%emt 0:00:12]} Rxg3+ {[%emt 0:01:03]} 32. Kc2 {[%emt 0:01:00]} Qc4+ {[%emt 0:00:36] Weighted Error Value: White=1.22/Black=0.19 (very precise)} 0-1

[Event "55th Biel Festival ATO 2022"]
[Site "Biel"]
[Date "2022.07.21"]
[Round "8.1"]
[White "Hari Charan Sai Kalluri"]
[Black "Harisurya Bharadwaj Gundepudi"]
[Result "1/2-1/2"]
[ECO "C54"]
[WhiteElo "2041"]
[BlackElo "1924"]
[Annotator "TA"]
[PlyCount "48"]
[EventDate "2022.07.13"]
[EventType "swiss"]
[EventCountry "SUI"]
[SourceTitle "playchess.com"]
[Source "ChessBase"]
[SourceQuality "1"]
[TimeControl "40/5400+30:1800+30"]

{[%evp 11,48,0,0,-11,-6,-12,0,0,0,0,0,0,0,0,0,0,0,0,0,0,0,0,-2,-1,0,0,0,0,0,0,0,-6,0,0,73,73,73,0,0]} 1. e4 {[%emt 0:01:35]} e5 {[%emt 0:03:58]} 2. Nf3 {[%emt 0:01:20]} Nc6 {[%emt 0:00:30]} 3. Bc4 {[%emt 0:00:30]} Bc5 {[%emt 0:04:54]} 4. c3 {[%emt 0:00:12][%cal Bc2c3,Bc3d4,Bd4d5][%mdl 32]} Nf6 {[%emt 0:00:23]} 5. d4 {[%emt 0:01:54]} exd4 {[%emt 0:01:46]} 6. cxd4 {[%emt 0:01:34]} Bb4+ {[%emt 0:01:49]} 7. Nbd2 {[%emt 0:01:33] C54: Giuoco Piano: 4 c3 Nf6, main lines with 5 d4 and 5 d3.} Nxe4 {[%emt 0:02:43]} 8. d5 {[%emt 0:02:02] [#] Strongly threatening 0-0.} Nxd2 {[%emt 0:02:20]} 9. Bxd2 {[%emt 0:00:49]} Bxd2+ {[%emt 0:00:13]} 10. Qxd2 {[%emt 0:00:05]} ({Of course not} 10. Nxd2 Qe7+ 11. Qe2 Qxe2+ 12. Kxe2 Ne5 $15) ({Much weaker is} 10. Kxd2 Ne7 $15) 10... Ne7 {[%emt 0:00:10]} 11. d6 {[%emt 0:00:06] 11.0-0-0 deserves study.} cxd6 {[%emt 0:00:11][%cal Od6d5]} 12. O-O {[%emt 0:00:18]} d5 {[%emt 0:02:41]} 13. Bxd5 {[%emt 0:01:05]} Nxd5 {[%emt 0:01:26]} 14. Qxd5 {[%emt 0:00:06]} O-O {[%emt 0:00:03]} 15. Rad1 {[%emt 0:00:11]} d6 {[%emt 0:02:35]} 16. Qxd6 {[%emt 0:00:42]} (16. Rfe1 {with more complications.} Be6 17. Qxb7 Rb8 18. Qxa7 Rxb2 19. a4) 16... Qxd6 {[%emt 0:00:06]} 17. Rxd6 {[%emt 0:00:04]} Be6 {[%emt 0:00:13]} 18. b3 {[%emt 0:00:05]} Rfd8 {[%emt 0:00:31] [#]} 19. Rfd1 $146 {[%emt 0:00:09]} ({Predecessor:} 19. Rd4 Rxd4 20. Nxd4 Rd8 21. Nxe6 fxe6 22. Rc1 Rd2 23. Rc8+ Kf7 24. Rc7+ Kf6 25. f3 Rxa2 26. Rxb7 Rb2 27. Rxa7 Rxb3 {½-½ (27) Szustakowski,A (2330)-Chylewski,P (2335) Suwalki 2018}) 19... Rxd6 {[%emt 0:00:09]} 20. Rxd6 {[%emt 0:00:03]} Rc8 {[%emt 0:02:08] ( -> ...Rc1+)} 21. h3 {[%emt 0:01:09]} h6 {[%emt 0:01:44]} 22. Nd4 {[%emt 0:00:35]} Re8 {[%emt 0:00:07]} (22... Kf8 $11 23. Nxe6+ Ke7) 23. Nxe6 $16 {[%emt 0:00:15]} Rxe6 {[%emt 0:00:02] [#]} 24. Rd7 {[%emt 0:00:55]} ({White should try} 24. Rd8+ $1 $16 Kh7 25. Rd7) 24... Rb6 {[%emt 0:00:55] Weighted Error Value: White=0.06 (flawless) /Black=0.12 (very precise)} 1/2-1/2

[Event "55th Biel Festival ATO 2022"]
[Site "Biel"]
[Date "2022.07.21"]
[Round "8.2"]
[White "Mirski, Michal"]
[Black "Al Helaoy Majed"]
[Result "0-1"]
[ECO "B15"]
[WhiteElo "1868"]
[BlackElo "2015"]
[Annotator "TA"]
[PlyCount "54"]
[EventDate "2022.07.13"]
[EventType "swiss"]
[EventCountry "SUI"]
[SourceTitle "playchess.com"]
[Source "ChessBase"]
[SourceQuality "1"]
[TimeControl "40/5400+30:1800+30"]

{[%evp 13,54,17,2,1,3,-8,0,0,0,0,0,0,0,0,0,-15,0,0,16,12,12,0,4,-7,-8,-7,-3,-3,-3,-4,0,0,0,-6,-7,-52,-52,-281,-297,-713,-701,-736,-731]} 1. e4 {[%emt 0:00:03]} g6 {[%emt 0:00:09]} 2. Nc3 {[%emt 0:00:21]} Bg7 {[%emt 0:00:06]} 3. d4 {[%emt 0:00:44]} c6 {[%emt 0:00:10]} 4. Nf3 {[%emt 0:01:10]} d5 {[%emt 0:00:27]} 5. exd5 {[%emt 0:00:42]} cxd5 {[%emt 0:00:01]} 6. Bb5+ {[%emt 0:00:42]} Bd7 {[%emt 0:02:38]} 7. Bxd7+ {[%emt 0:01:52]} Qxd7 {[%emt 0:00:02]} 8. O-O {[%emt 0:06:23] B15: Caro-Kann: 3 Nc3: 3...g6 and 3...dxe4 4 Nxe4 Nf6 5 Nxf6+ exf6.} Nc6 {[%emt 0:01:55] Inhibits Ne5.} 9. Bf4 {[%emt 0:00:27]} Nf6 {[%emt 0:02:59]} 10. Ne5 {[%emt 0:02:37] [#] The position is equal.} Qd8 $146 {[%emt 0:01:29]} ({Predecessor:} 10... Qf5 11. Bg3 O-O 12. Re1 Rfe8 13. Qd2 Rac8 14. Rad1 Ne4 15. Nxe4 dxe4 16. Nxc6 Rxc6 {0-1 (61) Mirski,M (2017)-Markiewicz,J (2170) Warsaw 2019}) 11. Nxc6 {[%emt 0:06:55]} bxc6 {[%emt 0:00:13]} 12. Be5 {[%emt 0:00:20]} O-O {[%emt 0:03:04]} 13. Re1 {[%emt 0:02:57]} Re8 {[%emt 0:02:38]} 14. Qe2 {[%emt 0:01:34]} a5 {[%emt 0:08:16]} 15. Na4 {[%emt 0:06:10]} Ra7 {[%emt 0:07:51]} 16. Rad1 {[%emt 0:02:34][%cal Ba1d1,Bd1d3,Bd3h3][%mdl 32]} e6 {[%emt 0:07:19]} 17. Rd3 {[%emt 0:02:38]} Bf8 {[%emt 0:03:00]} 18. Rh3 {[%emt 0:02:00]} Nd7 {[%emt 0:04:26]} 19. Bf4 {[%emt 0:03:39]} Qf6 {[%emt 0:11:08]} 20. Qd2 {[%emt 0:02:00]} e5 {[%emt 0:05:04]} 21. dxe5 {[%emt 0:06:36]} (21. Bxe5 {with more complications.} Nxe5 22. Rxe5 Rxe5 23. dxe5 Qxe5 24. Re3) 21... Nxe5 {[%emt 0:00:38]} 22. Bxe5 {[%emt 0:24:41]} Rxe5 {[%emt 0:00:03]} 23. Rxe5 {[%emt 0:00:53]} Qxe5 {[%emt 0:00:01]} 24. Qe3 {[%emt 0:03:07]} (24. Re3 $5 {[%cal Re3e5]} Qd6 25. b3 $11) 24... Qb8 $40 {[%emt 0:03:18][%mdl 128] Threatens to win with ...Re7. White needs to defend precisely.} 25. Qb3 $2 {[%emt 0:12:16] [#]} (25. Qd4 $15) 25... Rb7 $1 $19 {[%emt 0:08:30]} 26. Qg3 {[%emt 0:09:35] [#]} (26. Qd3 Qf4 27. b3 Qc1+ 28. Qf1 Qxc2 29. Rc3 Qxa2 30. Qd1) 26... Re7 $1 {[%emt 0:00:53][%cal Re7e1]} 27. Qc3 {[%emt 0:00:33] Inhibits Re1+.} (27. Kf1 Qb5+) 27... Qf4 {[%emt 0:00:31] Weighted Error Value: White=0.52/Black=0.02 (flawless)} 0-1